Cogmind - Beta 11 @@@ ROGUE MODE // 2022.03.27 @ 10:19:38 Player: Dizzar Result: Destroyed by D-53 Grenadier with Mini Grenade Launcher Performance ------------- Evolutions (1) 500 Regions Visited (4) 800 Robots Destroyed (40) 200 Value Destroyed (987) 987 Prototype IDs (2) 40 Alien Tech Used (0) 0 Bonus (29) 29 TOTAL SCORE: 2556 Bonus ------- High Alert Combat Kills 29 Cogmind --------- Core Integrity 0/400 Matter 300/300 Energy 17/100 System Corruption 0% Temperature Cool (0) Movement Core (50) Location -9/Mines Parts ------- > --- POWER (1) -------- (None) > --- PROPULSION (2) --- (None) > --- UTILITY (4) ------ Targeting Computer > --- WEAPON (2) ------- (None) > --- INVENTORY (5) ---- Experimental Sensor Array Signal Interpreter Insulated Plating Insulated Plating Precision Beam Rifle Peak State ------------ > --- POWER ------------ Ion Engine > --- PROPULSION ------- Light Treads Light Treads > --- UTILITY ---------- Large Storage Unit Compact Matter Pod Experimental Sensor Array Targeting Computer > --- WEAPON ----------- Medium Laser Small Laser > --- INVENTORY -------- Ion Engine Wheel Small Storage Unit Medium Laser [Rating: 19] Favorites ----------- Power Ion Engine Engine Ion Engine Propulsion Light Treads Treads Light Treads Leg Aluminum Leg Wheel Wheel Utility Targeting Computer Device Improved Heat Sink Storage Large Storage Unit Processor Targeting Computer Protection Light Armor Plating Weapon Medium Laser Energy Gun Medium Laser Launcher Rocket Launcher Build | -11 -10 -10 -9 -9 ------- Run | Scr Mat Min Mat Min Slots Evolved 2 | . . . 2 . Power . | . . . . . Propulsion . | . . . . . Utility 2 | . . . 2 . Weapon . | . . . . . Parts Attached 31 | . . 2 24 5 Power 5 | . . 1 3 1 Engine 5 | . . 1 3 1 Core . | . . . . . Reactor . | . . . . . Propulsion 8 | . . . 7 1 Treads 7 | . . . 7 . Leg . | . . . . . Wheel 1 | . . . . 1 Hover . | . . . . . Flight . | . . . . . Utility 9 | . . 1 6 2 Device 2 | . . . 2 . Storage 2 | . . . 2 . Processor 1 | . . 1 . . Hackware . | . . . . . Protection 4 | . . . 2 2 Artifact . | . . . . . Weapon 9 | . . . 8 1 Energy Gun 6 | . . . 5 1 Energy Cannon . | . . . . . Ballistic Gun . | . . . . . Ballistic Cannon . | . . . . . Launcher 3 | . . . 3 . Special Weapon . | . . . . . Impact Weapon . | . . . . . Slashing Weapon . | . . . . . Piercing Weapon . | . . . . . Special Melee Weapon . | . . . . . Unidentified Prototypes 2 | . . . 2 . Parts Lost 16 | . . . 7 9 Power 2 | . . . 1 1 Propulsion 5 | . . . 3 2 Utility 5 | . . . 1 4 Weapon 4 | . . . 2 2 Highest Loss Streak 9 | . . . 3 9 To Critical Strikes . | . . . . . Average Slot Usage (%) 94 | . 85 95 96 69 Engine 11 | . 14 14 10 8 Treads 15 | . . . 19 5 Leg 5 | . 28 28 . . Device 6 | . . . 8 5 Storage 15 | . 14 14 16 11 Processor 10 | . . 9 11 11 Protection 5 | . . . 6 5 Energy Gun 21 | . 28 28 20 13 Launcher 1 | . . . 1 5 Naked Turns . | . . . . . Heaviest Build 38 | 13 13 13 38 37 Greatest Support 40 | 20 20 20 40 20 Greatest Overweight (x) 3 | . . . 1 3 Average Overweight (x) . | . . . . 2 Largest Inventory Capacity 15 | . 8 8 15 15 Average Capacity 13 | . 8 8 14 14 Most Carried 15 | . 7 8 15 15 Average Carried 8 | . 6 7 9 12 Final Capacity 15 | 8 8 8 15 5 Final Carried 15 | 6 7 8 15 5 Class Distribution -------------------- 74% | Mutant 25% | Scavenger-Mutant Dominant Class ---------------- Mutant | -10/Materials Mutant | -10/Mines Mutant | -9/Materials Mutant | -9/Mines Resources | -11 -10 -10 -9 -9 ----------- Run | Scr Mat Min Mat Min Matter Collected 700 | 200 . 170 260 70 Remotely . | . . . . . Salvage Created 1212 | . 11 84 1033 84 Parts 75 | . 3 3 64 5 Haulers Intercepted 1 | . . . 1 . Recyclers Shooed . | . . . . . Parts Field Recycled . | . . . . . Retrieved Matter . | . . . . . Parts Self-Destructed . | . . . . . Prevented . | . . . . . Kills | -11 -10 -10 -9 -9 ------- Run | Scr Mat Min Mat Min Combat Hostiles Destroyed 31 | . . 2 25 4 Guns 23 | . . 2 20 1 AOE 8 | . . . 5 3 Classes Destroyed 11 | . 1 1 7 2 Worker 1 | . . . 1 . Builder 2 | . . . 2 . Tunneler 1 | . . . . 1 Hauler 1 | . . . 1 . Recycler 1 | . . . 1 . Operator 1 | . 1 . . . Watcher 2 | . . . 2 . Swarmer 11 | . . . 8 3 Grunt 14 | . . 2 12 . Sentry 5 | . . . 5 . Demolisher 1 | . . . . 1 Best Kill Streak 8 | . 1 1 8 5 Combat Bots Only 6 | . . 1 6 3 Max Kills in Single Turn 3 | . 1 1 2 3 Gunslinging . | . . . . . Exploded 3 | . . . 1 3 Melee . | . . . . . Uniques/NPCs Destroyed . | . . . . . Combat | -11 -10 -10 -9 -9 -------- Run | Scr Mat Min Mat Min Damage Taken 2219 | . . 221 1032 966 Core 453 | . . 52 173 228 Absorbed by Shields . | . . . . . Core Remaining (%) 89 | 100 . 79 . . Volleys Fired 96 | . 2 12 76 6 Largest 2 | . 2 2 2 2 Hottest 122 | . 90 90 106 122 Shots Fired 188 | . 4 24 149 11 Gun 177 | . 4 24 140 9 Cannon . | . . . . . Launcher 11 | . . . 9 2 Special . | . . . . . Kinetic . | . . . . . Thermal 177 | . 4 24 140 9 Explosive 11 | . . . 9 2 Electromagnetic . | . . . . . Robot Hit Streak 22 | . 4 7 22 8 Robot Miss Streak 5 | . . 2 5 1 Penetration Max . | . . . . . Secondary Targets 1 | . . . 1 . Max Gunslinging Chain 1 | . . . 1 . Shots Hit Robots 127 | . 4 15 99 9 Core Hits 69 | . 2 5 55 7 Critical Kills . | . . . . . Critical Parts Destroyed . | . . . . . Critical Strikes 7 | . . . 7 . Burn 7 | . . . 7 . Melee Attacks . | . . . . . Impact . | . . . . . Slashing . | . . . . . Piercing . | . . . . . Sneak Attacks . | . . . . . Combat Hostiles . | . . . . . Follow-up Attacks . | . . . . . Damage Inflicted 2346 | . 47 180 1769 350 Guns 1527 | . 47 180 1180 120 Cannons . | . . . . . Explosions 819 | . . . 589 230 Melee . | . . . . . Ramming . | . . . . . Kinetic . | . . . . . Thermal 1527 | . 47 180 1180 120 Explosive 819 | . . . 589 230 Electromagnetic . | . . . . . Impact . | . . . . . Slashing . | . . . . . Piercing . | . . . . . Highest Corruption . | . . . . . Average Corruption . | . . . . . Corruption Purged . | . . . . . Corruption Blocked . | . . . . . Overload Shots . | . . . . . Overflow Damage 55 | . . . 51 4 Projectiles . | . . . . . Explosions 55 | . . . 51 4 Melee . | . . . . . Knockbacks . | . . . . . Impact . | . . . . . Kinetic . | . . . . . Secondary . | . . . . . Self-Inflicted Damage 13 | . . . . 13 Shots 1 | . . . . 1 Rammed . | . . . . . Targets Rammed . | . . . . . Kicked . | . . . . . Crushed . | . . . . . Highest Temperature 395 | . 30 321 395 96 Average Temperature 120 | . 18 183 112 50 Received Heat Transfer 564 | . . 120 444 . Effects 3 | . . . 3 . Shutdowns 1 | . . . 1 . Energy Bleed 2 | . . . 2 . Siege Activations . | . . . . . Robots Corrupted . | . . . . . Combat Hostiles . | . . . . . Parts Fried . | . . . . . Impact Corruptions . | . . . . . Robots Melted . | . . . . . Combat Hostiles . | . . . . . Parts Melted 14 | . . 2 12 . Heat Transferred 4718 | . 124 471 3864 259 Parts Sabotaged . | . . . . . Parts Stolen . | . . . . . Parts Stripped . | . . . . . Power Chain Reactions . | . . . . . Missiles Intercepted . | . . . . . Alert | -11 -10 -10 -9 -9 ------- Run | Scr Mat Min Mat Min Peak Influence 502 | . 20 72 502 289 Initial 195 | . . 7 27 195 Average 231 | . 16 46 277 229 Maximum Alert Level 2 | . . . 2 1 Low Security (%) 45 | . 100 100 32 50 Level 1 38 | . . . 47 50 Level 2 15 | . . . 19 . Level 3 . | . . . . . Level 4 . | . . . . . Level 5 . | . . . . . High Security . | . . . . . Max Security . | . . . . . Squads Dispatched 5 | . 1 . 4 . Investigation . | . . . . . Extermination . | . . . . . Reinforcement 5 | . 1 . 4 . Assault . | . . . . . Garrison . | . . . . . Intercept . | . . . . . Searches Triggered . | . . . . . Construction Impeded 1 | . . . 1 . Haulers Reinforced . | . . . . . Active Scanning Responses . | . . . . . Cargo Convoy Interrupts . | . . . . . Stealth | -11 -10 -10 -9 -9 --------- Run | Scr Mat Min Mat Min Distress Signals 3 | . . . 3 . Communications Jammed . | . . . . . Distress Signals . | . . . . . Times Spotted 48 | . 1 2 40 5 Peak Tracking Total 6 | . . 2 6 5 Tactical Retreats 5 | . . . 5 . Traps | -11 -10 -10 -9 -9 ------- Run | Scr Mat Min Mat Min Traps Triggered 1 | . . . 1 . Indirectly . | . . . . . Trap Hack Attempts . | . . . . . Triggered . | . . . . . Disarmed . | . . . . . Reprogrammed . | . . . . . Reused . | . . . . . Traps Extracted . | . . . . . Installed . | . . . . . Triggered . | . . . . . Machines | -11 -10 -10 -9 -9 ---------- Run | Scr Mat Min Mat Min Machines Disabled 1 | . . . 1 . Max in Single Turn 1 | . . . 1 . Machines Sabotaged . | . . . . . Garrisons Compromised . | . . . . . Overloaded Fab Kills . | . . . . . Hacking | -11 -10 -10 -9 -9 --------- Run | Scr Mat Min Mat Min Machines Accessed 1 | . . . 1 . Terminals 1 | . . . 1 . Fabricators . | . . . . . Repair Stations . | . . . . . Recycling Units . | . . . . . Scanalyzers . | . . . . . Garrison Access . | . . . . . Total Hacks 2 | . . . 2 . Successful . | . . . . . Failed 2 | . . . 2 . Catastrophic 1 | . . . 1 . Database Lockouts . | . . . . . Manual 2 | . . . 2 . Terminals 2 | . . . 2 . Fabricators . | . . . . . Repair Stations . | . . . . . Recycling Units . | . . . . . Scanalyzers . | . . . . . Garrison Access . | . . . . . Terminal Hacks . | . . . . . Fabricator Hacks . | . . . . . Repair Station Hacks . | . . . . . Recycling Unit Hacks . | . . . . . Scanalyzer . | . . . . . Garrison Access Hacks . | . . . . . Unauthorized Hacks . | . . . . . Terminals . | . . . . . Fabricators . | . . . . . Repair Stations . | . . . . . Recycling Units . | . . . . . Scanalyzers . | . . . . . Garrison Access . | . . . . . Data Cores Recovered . | . . . . . Used . | . . . . . Hacking Detections 1 | . . . 1 . Full Trace Events . | . . . . . Feedback Events . | . . . . . Feedback Blocked . | . . . . . Robot Schematics Acquired . | . . . . . Robots Built . | . . . . . Authchips . | . . . . . Time . | . . . . . Total Robot Build Rating . | . . . . . Part Schematics Acquired . | . . . . . Parts Built . | . . . . . Authchips . | . . . . . Time . | . . . . . Total Part Build Rating . | . . . . . Parts Repaired . | . . . . . Time . | . . . . . Parts Recycled . | . . . . . Recycled Matter . | . . . . . Retrieved Matter . | . . . . . Retrieved Components . | . . . . . Parts Scanalyzed . | . . . . . Part Schematics Acquired . | . . . . . Parts Damaged . | . . . . . Bothacking | -11 -10 -10 -9 -9 ------------ Run | Scr Mat Min Mat Min Used RIF Installer . | . . . . . Robots Hacked . | . . . . . Non-combat . | . . . . . Combat . | . . . . . Robot Hacks Applied . | . . . . . Relay Couplers Released . | . . . . . Fabnet Peak Effective % . | . . . . . Robots Rewired . | . . . . . Allies Hacked . | . . . . . Hacks Repelled . | . . . . . Allies | -11 -10 -10 -9 -9 -------- Run | Scr Mat Min Mat Min Total Allies 2 | . . . . 2 Largest Group 2 | . . . . 2 Highest-Rated Group 32 | . . . . 32 Highest-Rated Ally 16 | . . . . 16 Total Orders . | . . . . . Ally Attacks 4 | . . . . 4 Total Damage 29 | . . . . 29 Kills . | . . . . . Allies Corrupted . | . . . . . Allies Melted . | . . . . . Intel | -11 -10 -10 -9 -9 ------- Run | Scr Mat Min Mat Min Robot Analysis Total . | . . . . . Derelict Logs Recovered 1 | . . 1 . . Drone Launches . | . . . . . Drone Recoveries . | . . . . . Exploration | -11 -10 -10 -9 -9 ------------- Run | Scr Mat Min Mat Min Turns Passed 1962 | . 100 264 1556 42 Spaces Moved 855 | 1 78 180 587 9 Core 1 | . . . . 1 Treads 584 | . . . 582 2 Legs 264 | 1 78 180 5 . Wheels 6 | . . . . 6 Hover . | . . . . . Flight . | . . . . . Fastest Speed 50 | 120 120 120 120 50 Average Speed 158 | 120 120 120 175 142 Slowest Speed 240 | 120 120 120 240 240 Overloaded Moves . | . . . . . Propulsion Burnouts . | . . . . . Robots Hopped . | . . . . . Cave-ins Triggered . | . . . . . Exploration Rate (%) 30 | 2 13 58 66 13 Regions Visited 4 Branch Regions 2 Pre-discovered Areas . | . . . . . Known Exits Taken . | . . . . . Unknown Exits Taken 4 | 1 1 1 1 . Scrap Searched 2 | . . 2 . . Spaces Dug 6 | . . . 6 . Terrain Destroyed 58 | . . . 47 11 Melee . | . . . . . Projectile . | . . . . . AOE 58 | . . . 47 11 Terrain Rammed . | . . . . . Walls Destroyed . | . . . . . Machines Disabled . | . . . . . Actions | -11 -10 -10 -9 -9 --------- Run | Scr Mat Min Mat Min Total 1274 | . 80 204 962 28 Wait 265 | . . 7 254 4 Move 851 | . 77 179 586 9 Hop . | . . . . . Pick Up 17 | . 1 2 14 . Fast Attach 6 | . . 1 5 . Attach 13 | . . . 8 5 Detach 3 | . . . 3 . Swap 12 | . . 1 11 . Drop 10 | . . 2 5 3 Fire 96 | . 2 12 76 6 Melee . | . . . . . Ram . | . . . . . Kick . | . . . . . Crush . | . . . . . Escape Stasis . | . . . . . Rewire 1 | . . . . 1 Trap . | . . . . . Miscellaneous . | . . . . . Route ------- -11/Scrapyard -10/Materials -10/Mines -9/Materials (discovered 2 exits: [*Mat] / [*Min]) -9/Mines History --------- Turn | Location | Event 1 | -11/Scrapyard | Discovered new exit (range 0) 1 | -11/Scrapyard | Entered Materials 65 | -10/Materials | Discovered new exit (range 12) 101 | -10/Materials | Entered Mines 251 | -10/Mines | Learned Materials trap positions 313 | -10/Mines | Build established: Mutant 317 | -10/Mines | Found a damaged Exp. Sensor Array with a note attached 321 | -10/Mines | Found Prototype Device 356 | -10/Mines | Discovered new exit (range 8) 365 | -10/Mines | Entered Materials 365 | -9/Materials | Evolved 2 slots: Utility x2 365 | -9/Materials | Identified Exp. Sensor Array 366 | -9/Materials | Loaded intel: 21 trap records 1415 | -9/Materials | Discovered new exit (range 15) 1639 | -9/Materials | Lost 3 parts (3n) 1763 | -9/Materials | Build established: Scavenger-Mutant 1827 | -9/Materials | Discovered new exit (range 15) 1921 | -9/Materials | Entered Mines 1922 | -9/Mines | Assembled infested the area 1934 | -9/Mines | Assisted by bots powering up and referring to "LRC-V3" 1940 | -9/Mines | Core integrity fell below 50% 1950 | -9/Mines | Met a Derelict bent on vengeance 1952 | -9/Mines | Core integrity fell below 20% 1963 | -9/Mines | Destroyed by D-53 Grenadier with Mini Grenade Launcher Last Messages --------------- 01942_ Rocket Launcher destroyed. 01942_ Lgt. Treads destroyed. 01947_ Imp. Heat Sink destroyed. 01948_ The unstable cave ceiling collapses. 01949_ Lgt. Armor Plating destroyed. 01951_ Prc. Beam Rifle destroyed. 01952_ The unstable cave ceiling collapses. 01954_ D-53 Grenadier destroyed. 01954_ U-05 Engineer lays Concrete. 01956_ as-69781 destroyed. 01956_ U-05 Engineer lays Concrete. 01960_ The unstable cave ceiling collapses. 01960_ U-05 Engineer lays Concrete. 01961_ The unstable cave ceiling collapses. 01961_ Dropped Lrg. Storage Unit. 01961_ Dropped Prc. Beam Rifle. 01962_ U-05 Engineer lays Concrete. 01962_ Dropped Ion Engine. 01962_ Extracted 48 matter. 01963_ U-05 Engineer lays Concrete. Map ----- +----------------------------------------------------+ | ?????????????????????????????????????????????????? | | ?????????????????????????????????????????????????? | | ?????????????????????????????????????????????????? | | ?????????????????????????????????????????????????? | | ?????????????????????????????????????????????????? | | ?????????????????????????????????????????????????? | | ?????????????????????????????????????????????????? | | ?????????????????????????????????????????????????? | | ?????????????????????????????????????????????????? | | ?????????????????###?????????????????????????????? | | ???????????????### ##???????????????????????????? | | ??????????????## #???????????????????????????? | | ??????????????# ###?????????????????????????? | | ?????????????## ##????????????????????????? | | ????????????## #????????????????????????? | | ??????? ###### ##???????????????????????? | | ????? "%" u ##??????????????????????? | | ????? " r = ##?????????????????????? | | ????????###### % #?????????????????????? | | ?????????????# ! ###???????????????????? | | ?????????????###% # ###?????????????????? | | ???????????????# d # #?????????????????? | | ???????????????# # # ##????????????????? | | ???????????????# *[ #????????????????? | | ?????????? ## *![ ##???????????????? | | ????????? ??# [@! #?????????????? | | ?????????? #####???# #?????????????? | | ???????????????????## t aa #??????????? | | ??????????????????? ?????????? | | ????????????????? ?????????? | | ????????????????##### ## ??????????? | | ????????????????????## ##?? ??????????? | | ?????????????????????## ##????? #??????????? | | ??????????????????????# #####??????????????????? | | ?????????????????????? ##??????????????????????? | | ?????????????????????? ????????????????????????? | | ?????????????????????? #????????????????????????? | | ????????????????????? ##?????????????????????????? | | ?????????????????????#???????????????????????????? | | ?????????????????????????????????????????????????? | | ?????????????????????????????????????????????????? | | ?????????????????????????????????????????????????? | | ?????????????????????????????????????????????????? | | ?????????????????????????????????????????????????? | | | | | | | | | | | | | +----------------------------------------------------+ Best States ------------- Heat Dissipation 42 Energy Generation 12 Energy Capacity 265 Matter Stores 450 Matter Capacity 450 Sight Range 16 Robot Scan Range 20 Terrain Scan Density 10 Armor Coverage 150 Evasion (%) 55 Targeting Accuracy 5 Recoil Reduction 2 Item Schematics ----------------- None Robot Schematics ------------------ None Fabricated ------------ Nothing Alien Tech Used ----------------- None Achievements -------------- None Challenges ------------ None Game ------ Seed ThiefGravityExoskeleton Manual? 0 Play Time 00:17:57 Cumulative 29.6 hours Start 2022.03.27 @ 09:17:14 End 2022.03.27 @ 10:19:38 Sessions 1 Manual Loads 0 Difficulty Rogue Special Mode None Game No. 36 Rogue 36 Adventurer 0 Explorer 0 Win Type - Total 2 Types 2/0/0/0/0/0/0/0/0 Lore% 29 Gallery% 33 Achievement% 33 Wizard Run 0 Options --------- ASCII 0 Keyboard 0 Movement Mouse Keybinds 0 Fullscreen 1 Font 18/SmallcapsGlow Map View 76x50 Tactical HUD 1 Map Filters NONE Filters NONE Steam 1 RUN: 315d7070-2965-4cf4-8e73-f1da38829cd3